bitfinex/quotes_ETHUSD_20240916
["timestamp","ask_amount","ask_price","bid_price","bid_amount"]
[1726516544998,25.67703907,2288.9,2288.8,0.0378179]
[1726516545224,18.99753,2288.9,2288.8,0.0378179]
[1726516545522,22.93809867,2288.9,2288.8,0.0378179]
[1726516546112,25.67664979,2288.9,2288.8,0.0378179]
[1726516546424,25.21653053,2288.9,2288.8,0.0378179]
[1726516547814,29.58544053,2288.9,2288.8,0.0378179]
[1726516548013,32.32399165,2288.9,2288.8,0.0378179]
[1726516548329,40.13932684,2288.9,2288.8,0.0378179]
[1726516549849,40.13932684,2288.9,2288.2,0.0378179]
[1726516549850,20.56297684,2288.9,2288.2,0.0378179]
[1726516550000,25.19968092,2288.3,2288.2,0.0378179]
[1726516550423,25.19848724,2288.3,2288.2,0.0378179]
[1726516552195,30.23873724,2288.3,2288.2,0.0378179]
[1726516552392,30.8982811,2288.3,2288.2,0.0378179]
[1726516552628,33.17671296,2288.3,2288.2,0.0378179]
[1726516553693,32.54750053,2288.3,2288.2,0.0378179]
[1726516554212,30.45060297,2288.3,2288.2,0.0378179]
[1726516554920,30.45035166,2288.3,2288.2,0.0378179]
[1726516556246,29.99494973,2288.3,2288.2,0.0378179]
[1726516556401,25.07489973,2288.3,2288.2,0.0378179]
[1726516556742,29.44494973,2288.3,2288.2,0.0378179]
[1726516556900,28.25666296,2288.3,2288.2,0.0378179]
[1726516557100,30.0741674,2288.3,2288.2,0.0378179]
[1726516557330,30.07381582,2288.3,2288.2,0.0378179]
[1726516558035,30.62381582,2288.3,2288.2,0.0378179]
[1726516558738,29.99460339,2288.3,2288.2,0.0378179]
[1726516559036,28.17745053,2288.3,2288.2,0.0378179]
[1726516559195,29.99424641,2288.3,2288.2,0.0378179]
[1726516561712,27.68594641,2288.3,2288.2,0.0378179]
[1726516562110,18.92118969,2288.3,2288.2,0.0378179]
[1726516562339,21.49910053,2288.3,2288.2,0.0378179]
[1726516562545,22.86175836,2288.3,2288.2,0.0378179]
[1726516563415,5.73270783,2288.3,2288.2,0.0378179]
[1726516563644,5.27882346,2288.4,2288.2,2.3560179]
[1726516563851,9.64880346,2288.4,2288.2,2.3560179]
[1726516564019,4.36989,2288.4,2288.2,2.3560179]
[1726516564215,8.73986,2288.4,2288.3,0.22460298]
[1726516564451,8.73986,2288.4,2288.2,2.3560179]
[1726516564758,0.90893346,2288.5,2288.4,2.3182]
[1726516565051,4.36958,2288.6,2288.4,2.5425991]
[1726516568664,4.36967,2288.5,2288.4,2.5425991]
[1726516569544,8.7392,2288.6,2288.4,2.3182]
[1726516569862,8.7392,2288.6,2288.5,0.22352471]
[1726516570646,4.36967,2288.5,2288.4,2.3182]
[1726516570844,4.36967,2288.5,2288.4,2.54183956]
[1726516572251,4.36951,2288.6,2288.4,2.54183956]
[1726516572867,4.36967,2288.5,2288.4,2.54183956]
[1726516573856,4.36951,2288.6,2288.4,2.54183956]
[1726516574167,4.36967,2288.5,2288.4,2.54183956]
[1726516574533,4.36967,2288.5,2288.4,2.3182]
[1726516574783,4.36951,2288.6,2288.4,2.3182]
[1726516575143,4.36951,2288.6,2288.5,0.22356624]
[1726516575770,5.27834346,2288.7,2288.5,0.22356624]
[1726516575771,0.90893346,2288.7,2288.5,0.22356624]
[1726516575969,4.36938,2288.7,2288.5,0.22356624]
[1726516576144,4.36938,2288.7,2288.4,2.3182]
[1726516576344,5.27816346,2288.8,2288.6,0.22345733]
[1726516576561,8.73845,2288.8,2288.5,0.22356624]
[1726516576772,8.73845,2288.8,2288.7,0.22334843]
[1726516576976,4.36929,2288.7,2288.6,0.22343953]
[1726516577163,4.36929,2288.7,2288.4,2.3182]
[1726516579061,4.36957,2288.6,2288.4,2.3182]
[1726516579447,4.36967,2288.5,2288.4,2.3182]
[1726516580043,4.37005,2288.3,2288.2,2.4360179]
[1726516580780,12.68066867,2288.3,2288.2,0.0378179]
[1726516580970,22.87797826,2288.3,2288.2,0.0378179]
[1726516581141,23.33565734,2288.3,2288.2,0.0378179]
[1726516581342,28.29463719,2288.3,2288.2,0.0378179]
[1726516581650,30.5687195,2288.3,2288.2,0.0378179]
[1726516582272,28.2918776,2288.3,2288.2,0.0378179]
[1726516583216,30.56884734,2288.3,2288.2,0.0378179]
[1726516583495,6.64735003,2288.3,2288.2,0.0378179]
[1726516583694,5.73652563,2288.3,2288.2,0.0378179]
[1726516583998,0.91099545,2288.3,2288.2,2.58420169]
[1726516584209,0.91099545,2288.3,2288.2,2.3600179]
[1726516584497,0.91099545,2288.4,2288.2,3.25725261]
[1726516584666,0.91099545,2288.4,2288.2,2.58418982]
[1726516586807,1.36647563,2288.6,2288.3,3.94056867]
[1726516587111,1.36647563,2289.0,2288.7,4.36917]
[1726516587413,2.27862,2289.2,2288.8,2.741917]
[1726516587414,1.36647563,2289.2,2288.8,2.741917]
[1726516587584,1.36647563,2289.2,2288.9,6.6738]
[1726516587769,1.36647563,2289.4,2289.0,2.305]
[1726516587971,1.36647563,2289.4,2289.0,3.26123651]
[1726516588271,1.36647563,2289.4,2289.1,0.2227231]
[1726516588865,4.36647563,2289.4,2289.1,0.2227231]
[1726516589284,8.73452563,2289.4,2289.1,0.2227231]
[1726516589559,5.73480563,2289.2,2289.1,0.2227231]
[1726516589836,4.36864,2289.1,2288.8,2.305]
[1726516590035,10.10306829,2289.2,2288.8,2.305]
[1726516590202,1.36625829,2289.1,2288.8,2.5355]
[1726516590605,5.73479829,2289.1,2288.8,2.5355]
[1726516590807,4.36854,2289.1,2288.8,2.5355]
[1726516592137,5.73458829,2289.2,2288.9,0.25355]
[1726516592437,4.36863,2289.1,2288.9,0.25355]
[1726516592624,10.10303829,2289.2,2288.9,0.25355]
[1726516592822,4.36833,2289.2,2288.9,0.25355]
[1726516593267,4.36857,2289.1,2288.9,0.25355]
[1726516593603,4.36871,2289.0,2288.9,0.25355]
[1726516593806,4.36871,2289.0,2288.8,2.305]
[1726516594547,4.36833,2289.2,2288.8,2.305]
[1726516595547,4.36853,2289.1,2288.8,2.305]
[1726516595919,8.73681,2289.2,2288.8,2.305]
[1726516596143,8.73681,2289.2,2288.8,3.409364]
[1726516596144,4.36856,2289.1,2288.8,3.409364]
[1726516596344,4.36625829,2289.4,2289.0,2.351]
[1726516596643,4.36808,2289.4,2289.0,2.351]
[1726516597054,8.73611,2289.4,2289.1,0.22231983]
[1726516597432,4.36805,2289.4,2289.1,0.22231983]
[1726516597822,8.7361,2289.4,2289.1,0.22231983]
[1726516598325,0.91014316,2289.5,2289.2,6.71872]
[1726516598534,9.64563316,2289.6,2289.2,2.3505]
[1726516598718,9.64563316,2289.6,2289.3,0.22201913]
[1726516599154,9.64563316,2289.6,2289.2,3.11405268]
[1726516599451,4.36774,2289.6,2289.2,3.11405268]
[1726516599654,4.36774,2289.6,2289.3,0.22201913]
[1726516600018,4.36774,2289.6,2289.4,0.22189844]
[1726516600222,5.27788316,2289.6,2289.4,0.22189844]
[1726516600442,4.91766,2289.6,2289.5,0.22178962]
[1726516600787,4.91766,2289.6,2289.3,1.25451997]
[1726516601054,4.91766,2289.6,2289.5,0.22178962]
[1726516601217,4.91766,2289.6,2289.4,0.22189844]
[1726516601555,4.91766,2289.6,2289.3,1.25451997]
[1726516601556,4.91766,2289.6,2289.5,0.22178962]
[1726516602055,4.91766,2289.6,2289.3,1.25451997]
[1726516602263,5.82780316,2289.6,2289.4,0.22189844]
[1726516602558,4.36776,2289.5,2289.2,2.3505]
[1726516603360,8.73566,2289.5,2289.2,2.3505]
[1726516603961,8.73566,2289.5,2288.5,3.94056867]
[1726516603962,8.73645,2289.3,2288.9,2.4284]
[1726516604167,4.36834,2289.2,2288.9,2.4284]
[1726516604931,4.36853,2289.1,2288.9,2.4284]
[1726516605259,4.36871,2289.0,2288.7,2.327]
[1726516605629,4.36917,2288.8,2288.4,4.36985]
[1726516605870,4.36917,2288.8,2288.4,5.24762679]
[1726516606561,4.36917,2288.8,2288.4,0.87777679]
[1726516606769,8.73837,2288.8,2288.4,0.87777679]
[1726516606971,4.36917,2288.8,2288.4,0.87777679]
[1726516607467,4.36898,2288.9,2288.4,5.24753679]
[1726516607766,4.36898,2288.9,2288.6,2.2569]
[1726516609221,5.27899316,2289.0,2288.6,2.2569]
[1726516609429,4.36885,2289.0,2288.6,2.2569]
[1726516609647,4.36885,2289.0,2288.6,3.03899037]
[1726516609889,4.36885,2289.0,2288.6,7.40839037]
[1726516610562,4.36885,2289.0,2288.6,3.03899037]
[1726516610563,4.36891,2288.9,2288.6,3.03899037]
[1726516610777,4.36891,2288.9,2288.6,2.2569]
[1726516611467,4.36881,2289.0,2288.6,6.71375086]
[1726516611667,4.36881,2289.0,2288.7,0.22267827]
[1726516611967,4.36892,2288.9,2288.7,0.22267827]
[1726516612483,8.73794,2288.9,2288.7,0.22267827]
[1726516612782,4.36892,2288.9,2288.7,0.22267827]
[1726516613359,4.36892,2288.9,2288.7,0.9075981]
[1726516613967,4.3691,2288.8,2288.7,0.9075981]
[1726516614276,4.3691,2288.8,2288.7,0.22267827]
[1726516615138,4.36892,2288.9,2288.7,0.22267827]
[1726516615573,4.36898,2288.9,2288.7,0.22267827]
[1726516615741,4.3691,2288.8,2288.7,0.22267827]
[1726516617277,4.36894,2288.9,2288.7,0.22267827]
[1726516618776,5.27886316,2289.0,2288.7,0.22267827]
[1726516618777,5.27886316,2289.0,2288.7,0.9075941]
[1726516618992,0.91014316,2289.1,2288.9,4.36891]
[1726516619282,12.67811316,2289.4,2289.0,7.15968908]
[1726516619446,7.4,2289.4,2289.2,4.36826]
[1726516619654,0.91014316,2289.5,2289.4,2.4874]
[1726516619850,1.36625829,2289.6,2289.4,2.4874]
[1726516619851,5.27771316,2289.6,2289.4,2.4874]
[1726516620054,5.27771316,2289.6,2289.4,2.70936368]
[1726516620305,0.91145508,2289.5,2289.4,2.70936368]
[1726516620654,5.27921508,2289.5,2289.4,0.22196368]
[1726516620955,5.27921508,2289.5,2289.2,2.2919]
[1726516621168,5.27921508,2289.5,2289.2,3.43935991]
[1726516621368,5.27921508,2289.5,2289.3,0.22191244]
[1726516621761,4.36776,2289.5,2289.2,3.43935991]
[1726516621963,4.36776,2289.5,2289.4,0.22173248]
[1726516622272,5.27921508,2289.5,2289.2,2.2919]
[1726516622669,4.36802,2289.4,2289.2,2.2919]
[1726516622868,5.27947508,2289.4,2289.3,0.22183538]
[1726516623157,4.36822,2289.3,2289.0,2.85662908]
[1726516623357,5.27944508,2289.4,2289.1,0.72255091]
[1726516623558,5.27944508,2289.4,2289.1,0.94369722]
[1726516623816,4.36824,2289.3,2289.1,0.22114631]
[1726516624038,9.64811508,2289.2,2289.1,0.22114631]
[1726516624165,10.19811508,2289.2,2289.1,0.22114631]
[1726516624505,10.19811508,2289.2,2288.3,2.2632]
[1726516624506,4.36967,2288.5,2288.3,2.2632]
[1726516624804,4.36967,2288.5,2288.4,0.21698187]
[1726516625005,22.98321867,2288.5,2288.4,0.21698187]
[1726516625303,4.37005,2288.3,2288.2,0.0378179]
[1726516625668,4.37005,2288.3,2288.2,0.25346629]
[1726516625870,4.37005,2288.3,2288.2,0.0378179]
[1726516626099,4.36987,2288.4,2288.2,0.25346629]
[1726516626256,0.91097045,2288.5,2288.2,0.0378179]
[1726516626257,4.36969,2288.5,2288.2,0.0378179]
[1726516626455,4.36969,2288.5,2288.3,0.21581218]
[1726516626781,4.36969,2288.5,2288.2,0.0378179]
[1726516626987,4.36969,2288.5,2288.4,0.21570326]
[1726516627226,4.36986,2288.4,2288.3,0.21601977]
[1726516627401,4.36986,2288.4,2288.2,0.0378179]
[1726516627587,4.36969,2288.5,2288.2,0.0378179]
[1726516627793,8.7395,2288.5,2288.2,0.0378179]
[1726516627992,4.36987,2288.4,2288.2,0.0378179]
[1726516629336,5.28066045,2288.5,2288.2,0.0378179]
[1726516629542,9.65044045,2288.5,2288.2,0.0378179]
[1726516629895,4.36987,2288.4,2288.2,0.0378179]
[1726516630530,5.28084045,2288.4,2288.2,0.0378179]
[1726516632191,9.65107045,2288.3,2288.2,0.0378179]
[1726516632505,11.07172667,2288.3,2288.2,0.0378179]
[1726516633108,16.44730121,2288.3,2288.2,0.0378179]
[1726516633340,19.90591227,2288.3,2288.2,0.0378179]
[1726516634193,24.36615305,2288.3,2288.2,0.0378179]
[1726516634641,22.73190414,2288.3,2288.2,0.0378179]
[1726516635143,22.27645964,2288.3,2288.2,0.0378179]
[1726516635305,22.27641472,2288.3,2288.2,0.0378179]
[1726516636913,16.39131167,2288.3,2288.2,0.0378179]
[1726516637099,15.93484873,2288.3,2288.2,0.0378179]
[1726516638643,10.10829345,2288.3,2288.2,0.0378179]
[1726516638838,4.82782494,2288.3,2288.2,0.0378179]
[1726516639044,4.37005,2288.3,2288.2,0.0378179]
[1726516639339,4.37005,2288.3,2288.2,0.2544983]
[1726516639709,4.36998,2288.4,2288.2,0.2544983]
[1726516639909,4.37005,2288.3,2288.2,0.2544983]
[1726516640152,4.36998,2288.4,2288.2,0.50772813]
[1726516640153,4.3699,2288.4,2288.2,0.50772813]
[1726516641933,4.37005,2288.3,2288.2,0.50772813]
[1726516642132,4.37005,2288.3,2288.2,0.2544983]
[1726516644149,8.7401,2288.3,2288.2,0.2544983]
[1726516644372,9.65055226,2288.3,2288.2,0.0378179]
[1726516645761,4.37005,2288.3,2288.2,0.0378179]
[1726516646812,8.7401,2288.3,2288.2,0.0378179]
[1726516647122,8.7401,2288.3,2288.2,0.25438551]
[1726516647746,4.37005,2288.3,2288.2,0.25438551]
[1726516647919,0.91045226,2288.4,2288.2,0.25438551]
[1726516648126,0.91045226,2288.5,2288.3,6.43168557]
[1726516648318,2.2802373,2288.7,2288.4,0.21632009]
[1726516648319,0.91045226,2288.7,2288.4,0.21632009]
[1726516648520,5.27929226,2289.0,2288.6,2.4896]
[1726516648746,5.27929226,2289.0,2288.7,0.2083888]
[1726516649052,5.27895226,2289.2,2288.7,0.2083888]
[1726516649251,0.91045226,2289.1,2288.7,1.30935524]
[1726516649552,5.27901226,2289.1,2288.7,1.30935524]
[1726516649923,4.36872,2289.0,2288.7,1.30935524]
[1726516650513,5.27901226,2289.1,2288.8,0.37989552]
[1726516650820,5.27901226,2289.1,2288.9,0.20789232]
[1726516653567,9.64764226,2289.1,2288.9,0.20789232]
[1726516653716,5.27901226,2289.1,2288.9,0.20789232]
[1726516653917,9.64763226,2289.1,2288.6,6.85906]
[1726516654221,9.64763226,2289.1,2288.7,1.33096215]
[1726516654222,5.27901226,2289.1,2288.7,1.33096215]
[1726516654538,5.27901226,2289.1,2288.7,5.70023215]
[1726516654743,0.91045226,2289.1,2288.7,5.70023215]
[1726516655047,0.91045226,2289.1,2288.8,1.25592922]
[1726516655354,0.91045226,2289.1,2288.9,0.20789232]
[1726516656834,5.27898226,2289.1,2288.9,0.20789232]
[1726516657538,5.27916226,2289.0,2288.9,0.20789232]
[1726516657776,5.27916226,2289.0,2288.6,6.85895]
[1726516657977,5.27916226,2289.0,2288.9,0.2078686]
[1726516658140,4.36871,2289.0,2288.6,7.981819]
[1726516658336,5.27898226,2289.1,2288.7,0.20808637]
[1726516658782,4.36872,2289.0,2288.7,0.20808637]
[1726516658944,4.36872,2289.0,2288.7,1.42128346]
[1726516659477,5.27900226,2289.1,2288.7,1.42128346]
[1726516659834,5.27900226,2289.1,2288.7,5.79044346]
[1726516662578,0.91045226,2289.1,2289.0,2.4797]
[1726516662789,6.19056673,2289.4,2289.0,6.84834]
[1726516662790,0.91045226,2289.4,2289.0,6.84834]
[1726516663080,1.36607379,2289.5,2289.1,1.07904256]
[1726516663081,4.36821,2289.3,2289.1,1.07904256]
[1726516663436,4.36821,2289.3,2289.2,0.20705571]
[1726516663773,4.36797,2289.4,2289.1,1.07904256]
[1726516663968,4.36797,2289.4,2289.0,6.84841]
[1726516664173,0.91045226,2289.5,2289.0,2.4797]
[1726516664367,4.36803,2289.4,2289.1,0.24797]
[1726516664748,4.36803,2289.4,2289.2,0.20696086]
[1726516665051,6.64004,2289.3,2289.2,0.20696086]
[1726516665446,6.64004,2289.3,2288.8,6.83056]
[1726516665641,6.64004,2289.3,2289.2,0.20696086]
[1726516665892,6.64004,2289.3,2288.8,6.83056]
[1726516666049,6.64004,2289.3,2289.2,0.20696086]
[1726516666253,6.64004,2289.3,2288.8,6.83056]
[1726516666453,0.91045226,2289.4,2289.3,2.2832]
[1726516666662,4.36777,2289.5,2289.3,2.2832]
[1726516666867,4.36777,2289.5,2289.3,2.49005202]
[1726516667075,4.36777,2289.5,2289.3,2.2832]
[1726516668272,5.27822226,2289.5,2289.3,2.2832]
[1726516668476,4.36769,2289.6,2289.3,2.2832]
[1726516668477,5.27814226,2289.6,2289.3,2.2832]
[1726516668704,5.27814226,2289.6,2289.4,0.20673133]
[1726516669960,0.91045226,2289.6,2289.4,0.20673133]
[1726516670272,4.36757,2289.6,2289.4,0.20673133]
[1726516670473,8.73527,2289.6,2289.4,0.20673133]
[1726516671049,4.36757,2289.6,2289.4,0.20673133]
[1726516671256,8.73525,2289.6,2289.4,0.20673133]
[1726516672087,8.73526,2289.6,2289.4,0.20673133]
[1726516672597,11.06552,2289.5,2289.4,0.20673133]
[1726516673103,11.06552,2289.5,2288.9,6.76566]
[1726516673104,4.36811,2289.4,2288.9,6.76566]
[1726516673253,8.73618,2289.4,2288.9,6.76566]
[1726516673453,4.36805,2289.4,2289.0,0.20659774]
[1726516673661,4.36852,2289.1,2289.0,0.20659774]
[1726516673860,4.36852,2289.1,2288.7,6.76619]
[1726516674085,4.36852,2289.1,2289.0,0.20659774]
[1726516674283,4.36852,2289.1,2288.7,2.3969]
[1726516674284,6.69852,2289.1,2288.7,2.3969]
[1726516674485,11.06714,2289.1,2289.0,0.20659774]
[1726516674671,4.36872,2289.0,2288.7,2.3969]
[1726516674880,4.36872,2289.0,2288.7,3.073521]
[1726516675759,4.36852,2289.1,2288.7,7.442731]
[1726516676061,8.73716,2289.1,2288.7,7.442761]
[1726516676369,4.36883,2289.0,2288.7,2.3969]
[1726516679013,4.36855,2289.1,2288.7,6.76618]
[1726516679175,4.36855,2289.1,2288.8,1.113565]
[1726516679568,3.25095226,2289.3,2289.0,2.3672]
[1726516679569,4.36816,2289.3,2289.0,2.3672]
[1726516679771,4.36816,2289.3,2289.0,3.5890625]
[1726516680199,4.36834,2289.2,2289.0,3.5890625]
[1726516680376,4.36816,2289.3,2289.0,3.5890625]
[1726516680377,4.36822,2289.3,2289.0,3.5890625]
[1726516680578,4.36822,2289.3,2289.1,0.20674965]
[1726516681330,15.10928226,2289.5,2289.1,0.20674965]
[1726516681331,4.36796,2289.4,2289.1,0.20674965]
[1726516681476,8.31045226,2289.5,2289.1,0.20674965]
[1726516681477,5.27836226,2289.5,2289.1,4.57523965]
[1726516681679,5.27836226,2289.5,2289.2,1.13110996]
[1726516682014,5.27836226,2289.5,2289.3,0.20653195]
[1726516682217,4.36795,2289.4,2289.3,0.20653195]
[1726516682520,4.36795,2289.4,2289.0,6.73581]
[1726516682835,4.36795,2289.4,2289.1,1.110471]
[1726516682980,4.36795,2289.4,2289.1,1.31719975]
[1726516683606,5.27840226,2289.4,2289.1,1.31719975]
[1726516683994,4.36795,2289.4,2289.1,1.31719975]
[1726516684432,4.36827,2289.3,2289.1,1.31719975]
[1726516684731,5.27843226,2289.4,2289.1,1.31719975]
[1726516686014,5.27824226,2289.5,2289.1,5.68554975]
[1726516686215,4.3681,2289.4,2289.2,0.80530898]
[1726516686415,0.91045226,2289.3,2289.1,0.20672875]
[1726516686616,5.27844226,2289.4,2289.3,0.2064755]
[1726516686833,5.27844226,2289.4,2289.2,0.20658434]
[1726516686982,0.91045226,2289.3,2289.1,0.67359]
[1726516687189,5.27844226,2289.4,2289.1,0.67359]
[1726516687796,0.91045226,2289.3,2289.2,0.740949]
[1726516688121,5.27844226,2289.4,2289.2,0.740949]
[1726516688502,0.91045226,2289.3,2289.0,2.3672]
[1726516688826,5.28255121,2289.2,2288.8,6.78189]
[1726516688990,0.91412121,2289.1,2288.9,5.047069]
[1726516689493,0.91412121,2289.2,2288.9,5.047069]
[1726516689918,5.28247121,2289.2,2288.9,5.047069]
[1726516690095,6.648545,2289.2,2288.9,5.047069]
[1726516690298,5.28247121,2289.2,2288.9,5.047069]
[1726516690529,0.91412121,2289.1,2288.9,0.678189]
[1726516690822,0.91412121,2289.1,2288.8,6.78183]
[1726516691022,5.28254121,2289.2,2288.9,4.3689]
[1726516691232,5.28254121,2289.2,2288.9,5.483973]
[1726516691416,1.36607379,2289.0,2288.8,2.4128]
[1726516691592,0.91549141,2289.0,2288.9,4.36891]
[1726516691786,2.2815652,2289.2,2289.0,2.448]
[1726516692235,0.91549141,2289.3,2289.0,2.448]
[1726516692530,0.91549141,2289.3,2289.1,0.7494981]
[1726516692689,0.91549141,2289.2,2289.1,0.7494981]
[1726516693438,1.36607379,2289.2,2289.1,0.7494981]
[1726516693588,1.37577106,2289.2,2289.1,0.7494981]
[1726516693791,1.37577106,2289.2,2289.0,2.448]
[1726516693988,5.74414106,2289.2,2289.0,2.448]
[1726516694296,1.37577106,2289.1,2289.0,2.448]
[1726516694801,1.82253673,2289.1,2289.0,2.448]
[1726516695203,1.82253673,2289.1,2288.7,2.3764]
[1726516695408,0.91718724,2288.9,2288.7,3.550285]
[1726516695705,1.37578086,2288.8,2288.3,2.3764]
[1726516695920,0.91717509,2288.5,2288.3,2.3764]
[1726516696532,0.91717509,2288.6,2288.3,2.3764]
[1726516696713,0.91717509,2288.5,2288.3,3.10197303]
[1726516697225,5.74526086,2288.6,2288.3,3.10197303]
[1726516697226,2.29295595,2288.6,2288.3,2.3764]
[1726516697429,0.91717509,2288.5,2288.3,2.3764]
[1726516698954,0.91717509,2288.6,2288.3,2.3764]
[1726516699248,0.91685526,2288.5,2288.4,0.28854403]
[1726516699551,0.91685526,2288.6,2288.4,0.28854403]
[1726516700212,0.91685526,2288.8,2288.6,2.3764]
[1726516700414,0.91685526,2288.9,2288.8,2.3764]
[1726516700640,0.91685526,2289.0,2288.8,7.22064]
[1726516701229,0.91685526,2289.1,2288.9,0.20710651]
[1726516701555,0.91685526,2289.1,2288.9,1.76029707]
[1726516702444,0.91685526,2289.0,2288.9,1.76029707]
[1726516702642,0.91685526,2289.0,2288.9,0.20710651]
[1726516702643,1.37578086,2289.0,2288.9,0.20710651]
[1726516702962,0.917052,2289.0,2288.9,0.20710651]
[1726516703880,1.82253673,2289.0,2288.9,0.20710651]
[1726516704238,10.60340232,2289.0,2288.9,0.20710651]
[1726516704549,4.36903,2288.9,2288.5,2.3607]
[1726516704752,0.91690476,2288.6,2288.5,2.3607]
[1726516705367,0.91690476,2288.7,2288.5,2.3607]
[1726516706244,1.83380041,2288.6,2288.3,2.4294]
[1726516706578,0.91637853,2288.5,2288.3,3.30734855]
[1726516707267,0.91637853,2288.6,2288.3,3.30734855]
[1726516707840,0.91637853,2288.5,2288.3,3.30734855]
[1726516708175,0.91637853,2288.6,2288.3,3.30734855]
[1726516708484,0.91637853,2288.6,2288.4,0.81865089]
[1726516708485,1.37456779,2288.6,2288.4,0.81865089]
[1726516708771,0.91581906,2288.5,2288.4,0.81865089]
[1726516708948,0.91581906,2288.6,2288.4,0.81865089]
[1726516709148,0.91581906,2288.7,2288.5,0.84958594]
[1726516709445,0.91581906,2288.6,2288.5,0.84958594]
[1726516710248,0.91581906,2288.6,2288.3,6.79926]
[1726516712401,5.28514906,2288.7,2288.3,6.79926]
[1726516712557,0.91581906,2288.5,2288.3,6.79926]
[1726516712759,0.91581906,2288.6,2288.3,6.79926]
[1726516713086,0.91581906,2288.6,2288.3,7.91999479]
[1726516713290,5.28529906,2288.6,2288.3,1.12073479]
[1726516713463,5.28529906,2288.6,2288.2,4.4080379]
[1726516713464,0.91581906,2288.5,2288.2,4.4080379]
[1726516713660,0.91581906,2288.5,2288.2,8.7782079]
[1726516713901,0.91581906,2288.6,2288.2,8.7782079]
[1726516714188,0.91581906,2288.6,2288.2,5.52580869]
[1726516714396,5.28576906,2288.4,2288.2,0.0378179]
[1726516714596,9.65591906,2288.3,2288.2,0.0378179]
[1726516714890,13.05710041,2288.3,2288.2,0.0378179]
[1726516715275,13.05372686,2288.3,2288.2,0.0378179]
[1726516715646,18.41915158,2288.3,2288.2,0.23922015]
[1726516715855,18.87747944,2288.3,2288.2,0.0378179]
[1726516716293,23.24752944,2288.3,2288.2,0.0378179]
[1726516716596,20.95877472,2288.3,2288.2,0.0378179]
[1726516716774,25.87882472,2288.3,2288.2,0.0378179]
[1726516716952,28.62533038,2288.3,2288.2,0.0378179]
[1726516717405,25.87882472,2288.3,2288.2,0.0378179]
[1726516718691,28.16235974,2288.3,2288.2,0.0378179]
[1726516718893,21.50877472,2288.3,2288.2,0.0378179]
[1726516719106,23.79221371,2288.3,2288.2,0.0378179]
[1726516720110,16.04952578,2288.3,2288.2,0.0378179]
[1726516720268,12.5930514,2288.3,2288.2,0.0378179]
[1726516720698,12.5930514,2288.3,2288.2,0.23995565]
[1726516720924,12.5930514,2288.3,2288.2,0.0378179]
[1726516721510,12.5930514,2288.3,2288.2,0.23995565]
[1726516721691,11.2233,2288.3,2288.2,0.0378179]
[1726516722305,12.13602359,2288.3,2288.2,0.23995565]
[1726516722464,12.13602359,2288.3,2288.2,0.0378179]
[1726516722663,12.13602359,2288.3,2288.2,0.23995565]
[1726516722901,12.5930514,2288.3,2288.2,0.0378179]
[1726516723107,14.79431184,2288.3,2288.2,0.23995565]
[1726516723303,13.88071793,2288.3,2288.2,0.0378179]
[1726516724020,29.20027163,2288.3,2288.2,0.0378179]
[1726516724165,34.9284424,2288.3,2288.2,0.0378179]
[1726516724367,36.56032163,2288.3,2288.2,0.0378179]
[1726516724610,39.2984924,2288.3,2288.2,0.0378179]
[1726516724904,23.45278,2288.0,2287.9,0.01]
[1726516725205,30.10364664,2288.0,2287.9,0.01]
[1726516725414,38.69757114,2288.0,2287.9,0.01]
[1726516725802,23.04235557,2287.6,2287.5,0.0378179]
[1726516726021,30.98142162,2287.6,2287.5,0.0378179]
[1726516726311,30.52567874,2287.6,2287.5,0.0378179]
[1726516726811,30.52488919,2287.6,2287.5,0.0378179]
[1726516727219,35.35281162,2287.6,2287.5,0.0378179]
[1726516727510,35.35281162,2287.6,2286.8,0.0378179]
[1726516727511,19.10372,2287.0,2286.8,0.0378179]
[1726516727807,23.04580557,2287.0,2286.8,0.0378179]
[1726516730231,24.03016,2287.0,2286.8,0.0378179]
[1726516730390,24.03016,2287.0,2286.1,0.0378179]
[1726516730391,19.33759557,2286.2,2286.1,0.0378179]
[1726516730774,19.88759557,2286.2,2286.1,0.0378179]
[1726516731075,27.26166557,2286.2,2286.1,0.0378179]
[1726516731276,26.30958,2286.2,2286.1,0.0378179]
[1726516731532,30.25166557,2286.2,2286.1,0.0378179]
[1726516731822,32.21482085,2286.2,2286.1,0.0378179]
[1726516731985,33.1380508,2286.2,2286.1,0.0378179]
[1726516732384,28.7639808,2286.2,2286.1,0.0378179]
[1726516733389,33.1380508,2286.2,2286.1,0.0378179]
[1726516733578,9.30082,2285.5,2285.4,0.0378179]
[1726516733917,18.96183,2285.5,2285.4,0.0378179]
[1726516734225,18.96183,2285.5,2284.2,2.344]
[1726516734227,4.37629,2285.1,2284.6,4.37711]
[1726516734516,4.92592,2285.3,2284.8,2.344]
[1726516734673,0.55,2285.3,2284.8,6.72072]
[1726516734882,3.55,2285.3,2284.9,0.16358687]
[1726516735104,4.37617,2285.1,2284.9,0.16358687]
[1726516736327,4.37581,2285.3,2284.9,0.16358687]
[1726516736693,4.37581,2285.3,2284.7,4.37687]
[1726516736889,8.75179,2285.3,2285.0,0.16347762]
[1726516737199,8.75179,2285.3,2285.1,0.16336838]
[1726516737403,4.37598,2285.2,2284.8,1.109786]
[1726516737724,4.37598,2285.2,2284.9,0.16358687]
[1726516737929,4.3762,2285.1,2284.9,0.16358687]
[1726516738286,8.75247,2285.1,2284.9,0.16358687]
[1726516738512,4.37592,2285.3,2284.7,4.3768]
[1726516738712,8.75181,2285.3,2285.0,0.16347762]
[1726516738912,8.75181,2285.3,2284.8,0.67208]
[1726516738913,4.37589,2285.3,2284.8,0.67208]
[1726516739087,4.37598,2285.2,2285.1,0.16336838]
[1726516739289,4.37598,2285.2,2284.8,0.67208]
[1726516739539,4.37598,2285.2,2285.1,0.16336838]
[1726516739826,4.376,2285.2,2285.1,0.16336838]
[1726516740051,4.376,2285.2,2284.6,6.72103]
[1726516740272,4.376,2285.2,2285.1,0.16336838]
[1726516740421,4.37626,2285.1,2284.6,6.72103]
[1726516740625,4.37598,2285.2,2285.1,0.16336838]
[1726516740821,4.37671,2284.9,2284.6,2.344]
[1726516741023,8.7535,2284.8,2284.7,0.1638054]
[1726516741222,4.37704,2284.7,2284.4,2.5355003]
[1726516742059,7.837598,2285.2,2284.4,2.5355003]
[1726516742360,4.37665,2284.9,2284.5,0.25355003]
[1726516742567,4.37631,2285.1,2284.4,2.5355003]
[1726516742568,4.37708,2284.7,2284.4,2.5355003]